[Event "4NCL Hull GM 2021"]
[Site "Hull"]
[Date "2021.10.21"]
[Round "2.1"]
[White "Willow, Jonah B"]
[Black "Royal, Shreyas"]
[Result "1-0"]
[ECO "C54"]
[WhiteElo "2353"]
[BlackElo "2226"]
[Annotator "ChessBase"]
[PlyCount "71"]
[EventDate "2021.10.20"]
[EventType "tourn"]
[EventCountry "ENG"]
[SourceTitle "playchess.com"]
[Source "ChessBase"]
[SourceQuality "1"]
[TimeControl "5400+30"]

1. e4 {[%emt 0:00:04]} e5 {[%emt 0:00:04]} 2. Nf3 {[%emt 0:00:20]} Nc6 {[%emt 0:00:08]} 3. Bc4 {[%emt 0:00:42]} Bc5 {[%emt 0:00:06]} 4. c3 {[%emt 0:00:16]} Nf6 {[%emt 0:00:06]} 5. d4 {[%emt 0:00:35]} exd4 {[%emt 0:00:06]} 6. b4 {[%emt 0:00:08]} Be7 {[%emt 0:09:58]} 7. b5 {[%emt 0:00:48]} Na5 {[%emt 0:00:33]} 8. Bd3 {[%emt 0:00:09]} d5 {[%emt 0:03:18]} 9. e5 {[%emt 0:01:23]} Nd7 {[%emt 0:06:01]} 10. cxd4 {[%emt 0:02:45]} Nb6 {[%emt 0:00:19]} 11. O-O {[%emt 0:02:13]} Bg4 {[%emt 0:05:37]} 12. h3 {[%emt 0:02:39]} Be6 {[%emt 0:00:05]} 13. Qc2 {[%emt 0:03:10]} Qd7 {[%emt 0:01:30]} 14. Ng5 {[%emt 0:05:50]} O-O-O {[%emt 0:03:17]} 15. a4 {[%emt 0:24:45]} Nbc4 {[%emt 0:03:18]} 16. Nxe6 {[%emt 0:03:44]} fxe6 {[%emt 0:00:05]} 17. Nd2 {[%emt 0:00:37]} g5 {[%emt 0:06:23]} 18. Bxc4 {[%emt 0:03:55]} dxc4 {[%emt 0:01:40]} 19. Bb2 {[%emt 0:00:58]} g4 {[%emt 0:06:45]} 20. Qc3 {[%emt 0:18:12]} Nb3 {[%emt 0:19:46]} 21. b6 {[%emt 0:08:18]} Kb8 {[%emt 0:07:56]} 22. Nxb3 {[%emt 0:00:27]} cxb3 {[%emt 0:00:04]} 23. bxc7+ {[%emt 0:00:21]} Qxc7 {[%emt 0:00:05]} 24. Qxb3 {[%emt 0:05:13]} Rhg8 {[%emt 0:02:58]} 25. Qxe6 {[%emt 0:06:27]} Rg6 {[%emt 0:05:58]} 26. Qb3 {[%emt 0:00:03]} gxh3 {[%emt 0:02:16]} 27. Qxh3 {[%emt 0:00:37]} Rdg8 {[%emt 0:00:03]} 28. g3 {[%emt 0:00:29]} Qc2 {[%emt 0:00:07]} 29. Ba3 {[%emt 0:00:47]} Qc3 {[%emt 0:00:27]} 30. Bxe7 {[%emt 0:07:15]} Rxg3+ {[%emt 0:00:08]} 31. fxg3 {[%emt 0:00:05]} Rxg3+ {[%emt 0:00:06]} 32. Qg2 {[%emt 0:00:55]} Qxd4+ {[%emt 0:01:48]} 33. Kh1 {[%emt 0:00:03]} Rxg2 {[%emt 0:00:07]} 34. Rf8+ {[%emt 0:00:52]} Kc7 {[%emt 0:00:04]} 35. Rc1+ {[%emt 0:00:06]} Kb6 {[%emt 0:00:17]} 36. Bc5+ {[%emt 0:00:10]} 1-0

[Event "4NCL Hull GM 2021"]
[Site "Hull"]
[Date "2021.10.21"]
[Round "2.3"]
[White "Jackson, James P"]
[Black "Czopor, Maciej"]
[Result "1/2-1/2"]
[ECO "B46"]
[WhiteElo "2386"]
[BlackElo "2411"]
[Annotator "ChessBase"]
[PlyCount "58"]
[EventDate "2021.10.20"]
[EventType "tourn"]
[EventCountry "ENG"]
[SourceTitle "playchess.com"]
[Source "ChessBase"]
[SourceQuality "1"]
[TimeControl "5400+30"]

1. e4 {[%emt 0:00:02]} c5 {[%emt 0:00:04]} 2. Nf3 {[%emt 0:00:05]} e6 {[%emt 0:00:04]} 3. d4 {[%emt 0:00:07]} cxd4 {[%emt 0:00:05]} 4. Nxd4 {[%emt 0:00:04]} Nc6 {[%emt 0:00:11]} 5. Nc3 {[%emt 0:00:10]} a6 {[%emt 0:00:08]} 6. Bf4 {[%emt 0:01:52]} d6 {[%emt 0:01:23]} 7. Bg3 {[%emt 0:00:07]} Be7 {[%emt 0:10:50]} 8. Qd2 {[%emt 0:13:37]} Nf6 {[%emt 0:14:05]} 9. Be2 {[%emt 0:12:46]} e5 {[%emt 0:07:41]} 10. Nxc6 {[%emt 0:20:32]} bxc6 {[%emt 0:00:04]} 11. f4 {[%emt 0:00:37]} exf4 {[%emt 0:07:53]} 12. Bxf4 {[%emt 0:00:06]} O-O {[%emt 0:02:52]} 13. O-O-O {[%emt 0:02:50]} Ne8 {[%emt 0:01:06]} 14. Bc4 {[%emt 0:08:09]} Bg4 {[%emt 0:04:35]} 15. Rdf1 {[%emt 0:02:43]} Bf6 {[%emt 0:02:07]} 16. Bb3 {[%emt 0:02:57]} Qe7 {[%emt 0:01:05]} 17. Re1 {[%emt 0:04:51]} Rd8 {[%emt 0:02:46]} 18. h3 {[%emt 0:03:34]} Bc8 {[%emt 0:03:41]} 19. Na4 {[%emt 0:04:14]} Nc7 {[%emt 0:01:17]} 20. Nb6 {[%emt 0:02:08]} Be6 {[%emt 0:08:04]} 21. Nd5 {[%emt 0:05:51]} cxd5 {[%emt 0:01:15]} 22. exd5 {[%emt 0:00:04]} Nxd5 {[%emt 0:03:57]} 23. Bxd5 {[%emt 0:00:06]} Qd7 {[%emt 0:00:58]} 24. Bg5 {[%emt 0:07:33]} Bxg5 {[%emt 0:04:11]} 25. Qxg5 {[%emt 0:00:07]} Qb5 {[%emt 0:01:57]} 26. Rd1 {[%emt 0:03:59]} Rb8 {[%emt 0:01:37]} 27. b3 {[%emt 0:00:06]} Rfc8 {[%emt 0:00:21]} 28. Qd2 {[%emt 0:02:49]} Bf5 {[%emt 0:02:16]} 29. c4 {[%emt 0:00:06]} Qc5 {[%emt 0:04:24]} 1/2-1/2

[Event "4NCL Hull GM 2021"]
[Site "Hull"]
[Date "2021.10.21"]
[Round "2.4"]
[White "Clarke, Brandon G I"]
[Black "Davies, Nigel R"]
[Result "0-1"]
[ECO "C50"]
[WhiteElo "2442"]
[BlackElo "2475"]
[Annotator "ChessBase"]
[PlyCount "58"]
[EventDate "2021.10.20"]
[EventType "tourn"]
[EventCountry "ENG"]
[SourceTitle "playchess.com"]
[Source "ChessBase"]
[SourceQuality "1"]
[TimeControl "5400+30"]

1. e4 {[%emt 0:04:53]} e5 {[%emt 0:00:09]} 2. Nf3 {[%emt 0:00:06]} Nc6 {[%emt 0:00:07]} 3. Bc4 {[%emt 0:01:52]} d6 {[%emt 0:01:29]} 4. d4 {[%emt 0:00:49]} exd4 {[%emt 0:00:10]} 5. Nxd4 {[%emt 0:00:16]} Nf6 {[%emt 0:00:23]} 6. Nc3 {[%emt 0:00:08]} Be7 {[%emt 0:00:07]} 7. O-O {[%emt 0:01:43]} O-O {[%emt 0:00:07]} 8. Bf4 {[%emt 0:08:25]} Ne5 {[%emt 0:02:26]} 9. Be2 {[%emt 0:00:30]} Ng6 {[%emt 0:28:37]} 10. Bg3 {[%emt 0:03:16]} Nxe4 {[%emt 0:07:22]} 11. Nxe4 {[%emt 0:00:05]} f5 {[%emt 0:00:07]} 12. Bc4+ {[%emt 0:25:46]} Kh8 {[%emt 0:00:10]} 13. Bd3 {[%emt 0:08:11]} fxe4 {[%emt 0:10:23]} 14. Bxe4 {[%emt 0:05:31]} Nf4 {[%emt 0:00:56]} 15. c4 {[%emt 0:04:15]} Bg5 {[%emt 0:03:41]} 16. Re1 {[%emt 0:03:38]} c6 {[%emt 0:02:33]} 17. Nf3 {[%emt 0:06:15]} Bg4 {[%emt 0:02:56]} 18. Qb3 {[%emt 0:00:35]} Rb8 {[%emt 0:11:33]} 19. Rad1 {[%emt 0:00:26]} Qa5 {[%emt 0:07:05]} 20. Qc3 {[%emt 0:08:46]} Qxc3 {[%emt 0:00:18]} 21. bxc3 {[%emt 0:00:01]} Rbe8 {[%emt 0:02:49]} 22. Rxd6 {[%emt 0:03:14]} Nxg2 {[%emt 0:03:42]} 23. Re2 {[%emt 0:12:37]} Nf4 {[%emt 0:03:55]} 24. Bxf4 {[%emt 0:00:38]} Bxf4 {[%emt 0:03:59]} 25. Rd4 {[%emt 0:00:22]} Be5 {[%emt 0:00:53]} 26. Rd3 {[%emt 0:00:23]} Bc7 {[%emt 0:00:35]} 27. c5 {[%emt 0:00:46]} g6 {[%emt 0:01:18]} 28. Kf1 {[%emt 0:00:32]} Re7 {[%emt 0:00:44]} 29. Rd4 {[%emt 0:00:28]} Ref7 {[%emt 0:01:23]} 0-1

[Event "4NCL Hull GM 2021"]
[Site "Hull"]
[Date "2021.10.21"]
[Round "2.5"]
[White "Murphy, Conor E"]
[Black "Wadsworth, Matthew J"]
[Result "0-1"]
[ECO "B49"]
[WhiteElo "2428"]
[BlackElo "2425"]
[Annotator "ChessBase"]
[PlyCount "96"]
[EventDate "2021.10.20"]
[EventType "tourn"]
[EventCountry "ENG"]
[SourceTitle "playchess.com"]
[Source "ChessBase"]
[SourceQuality "1"]
[TimeControl "5400+30"]

1. e4 {[%emt 0:07:08]} c5 {[%emt 0:00:06]} 2. Nf3 {[%emt 0:00:26]} e6 {[%emt 0:00:07]} 3. d4 {[%emt 0:00:19]} cxd4 {[%emt 0:00:05]} 4. Nxd4 {[%emt 0:00:06]} Nc6 {[%emt 0:00:13]} 5. Nc3 {[%emt 0:00:36]} Qc7 {[%emt 0:00:07]} 6. Be2 {[%emt 0:00:27]} a6 {[%emt 0:00:38]} 7. O-O {[%emt 0:00:30]} Nf6 {[%emt 0:00:07]} 8. Be3 {[%emt 0:00:15]} Bb4 {[%emt 0:00:19]} 9. Na4 {[%emt 0:00:20]} Be7 {[%emt 0:00:09]} 10. Nxc6 {[%emt 0:00:34]} bxc6 {[%emt 0:00:09]} 11. Nb6 {[%emt 0:00:08]} Rb8 {[%emt 0:00:24]} 12. Nxc8 {[%emt 0:00:10]} Qxc8 {[%emt 0:00:05]} 13. Bd4 {[%emt 0:00:30]} c5 {[%emt 0:02:28]} 14. Be5 {[%emt 0:00:21]} Rb6 {[%emt 0:00:15]} 15. Qd3 {[%emt 0:00:27]} O-O {[%emt 0:04:54]} 16. b3 {[%emt 0:01:02]} d6 {[%emt 0:08:13]} 17. Bb2 {[%emt 0:00:42]} Nd7 {[%emt 0:01:37]} 18. Rad1 {[%emt 0:00:46]} Bf6 {[%emt 0:02:17]} 19. Bc1 {[%emt 0:01:37]} Ne5 {[%emt 0:11:29]} 20. Qh3 {[%emt 0:16:08]} Rd8 {[%emt 0:08:28]} 21. f4 {[%emt 0:12:43]} Nc6 {[%emt 0:00:30]} 22. c3 {[%emt 0:04:25]} a5 {[%emt 0:06:31]} 23. Bc4 {[%emt 0:04:17]} a4 {[%emt 0:05:43]} 24. bxa4 {[%emt 0:04:29]} Qa8 {[%emt 0:02:52]} 25. Bb5 {[%emt 0:10:45]} Na7 {[%emt 0:01:23]} 26. e5 {[%emt 0:01:28]} dxe5 {[%emt 0:06:19]} 27. fxe5 {[%emt 0:01:19]} Bxe5 {[%emt 0:00:52]} 28. Qh5 {[%emt 0:05:20]} Rxd1 {[%emt 0:10:10]} 29. Qxf7+ {[%emt 0:02:19]} Kh8 {[%emt 0:00:01]} 30. Rxd1 {[%emt 0:00:17]} Nxb5 {[%emt 0:00:49]} 31. axb5 {[%emt 0:01:33]} Rxb5 {[%emt 0:02:17]} 32. Qxe6 {[%emt 0:06:10]} Bf6 {[%emt 0:03:24]} 33. Re1 {[%emt 0:07:21]} Rb8 {[%emt 0:01:13]} 34. Bf4 {[%emt 0:00:35]} Rg8 {[%emt 0:01:14]} 35. Qb3 {[%emt 0:02:38]} Qa6 {[%emt 0:04:03]} 36. a4 {[%emt 0:04:35]} Qd3 {[%emt 0:01:44]} 37. Be5 {[%emt 0:05:24]} c4 {[%emt 0:09:15]} 38. Qb5 {[%emt 0:00:04]} Qd2 {[%emt 0:00:36]} 39. Bg3 {[%emt 0:00:10]} Qxc3 {[%emt 0:00:27]} 40. a5 {[%emt 0:00:33]} Bd4+ {[%emt 0:02:01]} 41. Kh1 {[%emt 0:00:09]} Rf8 {[%emt 0:01:22]} 42. Qe8 {[%emt 0:00:26]} Bc5 {[%emt 0:01:03]} 43. a6 {[%emt 0:00:39]} Qf6 {[%emt 0:01:33]} 44. h3 {[%emt 0:01:19]} Qxa6 {[%emt 0:00:49]} 45. Bf2 {[%emt 0:00:29]} Bb4 {[%emt 0:00:51]} 46. Re6 {[%emt 0:00:50]} Qa1+ {[%emt 0:00:43]} 47. Kh2 {[%emt 0:00:18]} Qf1 {[%emt 0:01:28]} 48. Re2 {[%emt 0:00:49]} Qxf2 {[%emt 0:00:31]} 0-1

[Event "4NCL Hull GM 2021"]
[Site "Hull"]
[Date "2021.10.21"]
[Round "3.1"]
[White "Wadsworth, Matthew J"]
[Black "Willow, Jonah B"]
[Result "1-0"]
[ECO "A37"]
[WhiteElo "2425"]
[BlackElo "2353"]
[Annotator "ChessBase"]
[PlyCount "117"]
[EventDate "2021.10.20"]
[EventType "tourn"]
[EventCountry "ENG"]
[SourceTitle "playchess.com"]
[Source "ChessBase"]
[SourceQuality "1"]
[TimeControl "5400+30"]

1. c4 {[%emt 0:00:01]} c5 {[%emt 0:00:09]} 2. g3 {[%emt 0:00:06]} Nc6 {[%emt 0:00:22]} 3. Bg2 {[%emt 0:00:07]} g6 {[%emt 0:00:09]} 4. Nc3 {[%emt 0:00:06]} Bg7 {[%emt 0:00:04]} 5. Nf3 {[%emt 0:00:06]} e6 {[%emt 0:00:07]} 6. h4 {[%emt 0:00:05]} h6 {[%emt 0:00:06]} 7. d4 {[%emt 0:00:09]} Nxd4 {[%emt 0:00:03]} 8. Nxd4 {[%emt 0:00:22]} cxd4 {[%emt 0:01:02]} 9. Ne4 {[%emt 0:00:33]} d5 {[%emt 0:01:14]} 10. cxd5 {[%emt 0:00:26]} exd5 {[%emt 0:00:04]} 11. Qa4+ {[%emt 0:00:31]} Kf8 {[%emt 0:00:12]} 12. Nc5 {[%emt 0:01:16]} Ne7 {[%emt 0:03:24]} 13. Bf4 {[%emt 0:08:36]} Kg8 {[%emt 0:03:18]} 14. Rc1 {[%emt 0:01:25]} Kh7 {[%emt 0:02:31]} 15. O-O {[%emt 0:09:50]} Qe8 {[%emt 0:23:50]} 16. Qb3 {[%emt 0:02:08]} b6 {[%emt 0:01:14]} 17. Nd3 {[%emt 0:00:37]} Bg4 {[%emt 0:07:09]} 18. Rc7 {[%emt 0:01:46]} Rc8 {[%emt 0:03:13]} 19. Rxa7 {[%emt 0:09:05]} Qd8 {[%emt 0:15:19]} 20. Re1 {[%emt 0:06:05]} Re8 {[%emt 0:07:53]} 21. Rb7 {[%emt 0:03:57]} Rc6 {[%emt 0:16:26]} 22. Rb8 {[%emt 0:07:29]} Bc8 {[%emt 0:00:42]} 23. Nb4 {[%emt 0:01:15]} Rc5 {[%emt 0:01:15]} 24. Na6 {[%emt 0:00:43]} Rc6 {[%emt 0:01:36]} 25. Qb5 {[%emt 0:02:20]} Qd7 {[%emt 0:05:17]} 26. Rxb6 {[%emt 0:01:24]} Rxb6 {[%emt 0:03:18]} 27. Qxb6 {[%emt 0:00:07]} Bxa6 {[%emt 0:02:53]} 28. Qxa6 {[%emt 0:00:02]} Nf5 {[%emt 0:01:03]} 29. Rc1 {[%emt 0:01:09]} Re6 {[%emt 0:00:12]} 30. Qd3 {[%emt 0:00:24]} Qd8 {[%emt 0:00:52]} 31. Bh3 {[%emt 0:01:35]} Qf6 {[%emt 0:00:27]} 32. Bxf5 {[%emt 0:02:36]} Qxf5 {[%emt 0:00:32]} 33. Qxf5 {[%emt 0:00:02]} gxf5 {[%emt 0:00:06]} 34. Rc2 {[%emt 0:01:21]} d3 {[%emt 0:00:48]} 35. exd3 {[%emt 0:00:08]} Re1+ {[%emt 0:00:05]} 36. Kg2 {[%emt 0:00:16]} Rd1 {[%emt 0:00:08]} 37. b4 {[%emt 0:01:45]} Rxd3 {[%emt 0:00:21]} 38. Rd2 {[%emt 0:00:49]} Ra3 {[%emt 0:00:25]} 39. Rxd5 {[%emt 0:00:54]} Rxa2 {[%emt 0:00:09]} 40. Rxf5 {[%emt 0:00:07]} Kg6 {[%emt 0:01:24]} 41. g4 {[%emt 0:00:27]} Bd4 {[%emt 0:00:57]} 42. h5+ {[%emt 0:00:17]} Kg7 {[%emt 0:00:20]} 43. Be5+ {[%emt 0:00:33]} Bxe5 {[%emt 0:00:04]} 44. Rxe5 {[%emt 0:00:05]} Rb2 {[%emt 0:00:03]} 45. b5 {[%emt 0:00:24]} Kf6 {[%emt 0:00:19]} 46. Rf5+ {[%emt 0:00:07]} Ke6 {[%emt 0:00:09]} 47. Kg3 {[%emt 0:00:12]} f6 {[%emt 0:00:59]} 48. f3 {[%emt 0:00:17]} Rb4 {[%emt 0:00:35]} 49. Rc5 {[%emt 0:00:07]} Rb3 {[%emt 0:00:42]} 50. Rc6+ {[%emt 0:00:22]} Ke5 {[%emt 0:00:09]} 51. b6 {[%emt 0:00:30]} f5 {[%emt 0:01:17]} 52. gxf5 {[%emt 0:00:40]} Kxf5 {[%emt 0:00:16]} 53. Rxh6 {[%emt 0:00:06]} Kg5 {[%emt 0:00:03]} 54. Rc6 {[%emt 0:00:09]} Kxh5 {[%emt 0:00:18]} 55. Kf4 {[%emt 0:00:05]} Rb5 {[%emt 0:00:35]} 56. Re6 {[%emt 0:00:51]} Rb4+ {[%emt 0:00:34]} 57. Kf5 {[%emt 0:00:14]} Rb5+ {[%emt 0:00:22]} 58. Kf6 {[%emt 0:00:07]} Kh6 {[%emt 0:00:11]} 59. f4 {[%emt 0:00:29]} 1-0

[Event "4NCL Hull GM 2021"]
[Site "Hull"]
[Date "2021.10.21"]
[Round "3.2"]
[White "Davies, Nigel R"]
[Black "Murphy, Conor E"]
[Result "0-1"]
[ECO "A07"]
[WhiteElo "2475"]
[BlackElo "2428"]
[Annotator "ChessBase"]
[PlyCount "82"]
[EventDate "2021.10.20"]
[EventType "tourn"]
[EventCountry "ENG"]
[SourceTitle "playchess.com"]
[Source "ChessBase"]
[SourceQuality "1"]
[TimeControl "5400+30"]

1. Nf3 {[%emt 0:00:03]} d5 {[%emt 0:04:25]} 2. g3 {[%emt 0:00:18]} Nf6 {[%emt 0:00:17]} 3. Bg2 {[%emt 0:00:07]} e6 {[%emt 0:00:11]} 4. O-O {[%emt 0:00:15]} Be7 {[%emt 0:00:23]} 5. d3 {[%emt 0:02:15]} O-O {[%emt 0:00:24]} 6. Nbd2 {[%emt 0:00:04]} Nc6 {[%emt 0:00:43]} 7. c3 {[%emt 0:02:13]} e5 {[%emt 0:00:30]} 8. Qc2 {[%emt 0:00:25]} a5 {[%emt 0:03:32]} 9. e4 {[%emt 0:03:53]} dxe4 {[%emt 0:16:29]} 10. dxe4 {[%emt 0:01:38]} Be6 {[%emt 0:01:09]} 11. Ng5 {[%emt 0:03:55]} Bd7 {[%emt 0:03:25]} 12. Nc4 {[%emt 0:00:25]} Bc5 {[%emt 0:01:01]} 13. Nf3 {[%emt 0:16:35]} Re8 {[%emt 0:04:15]} 14. Ne3 {[%emt 0:16:50]} Qc8 {[%emt 0:02:36]} 15. Nd5 {[%emt 0:05:58]} Nxd5 {[%emt 0:01:33]} 16. exd5 {[%emt 0:01:41]} Bf5 {[%emt 0:05:28]} 17. Qa4 {[%emt 0:00:17]} Nb8 {[%emt 0:01:21]} 18. Re1 {[%emt 0:02:23]} Bd6 {[%emt 0:02:32]} 19. Nh4 {[%emt 0:02:57]} Bd7 {[%emt 0:02:17]} 20. Qc2 {[%emt 0:00:13]} c6 {[%emt 0:07:33]} 21. Be4 {[%emt 0:01:03]} cxd5 {[%emt 0:03:30]} 22. Bxd5 {[%emt 0:01:58]} Bc6 {[%emt 0:07:05]} 23. Qe4 {[%emt 0:01:08]} Bf8 {[%emt 0:06:38]} 24. Bg5 {[%emt 0:03:01]} Bxd5 {[%emt 0:00:44]} 25. Qxd5 {[%emt 0:00:09]} Nc6 {[%emt 0:00:38]} 26. Rad1 {[%emt 0:00:20]} Qg4 {[%emt 0:01:28]} 27. Be3 {[%emt 0:02:01]} Rad8 {[%emt 0:02:41]} 28. Qf3 {[%emt 0:00:13]} Qc4 {[%emt 0:02:19]} 29. a3 {[%emt 0:04:04]} a4 {[%emt 0:02:40]} 30. Rxd8 {[%emt 0:04:22]} Rxd8 {[%emt 0:00:23]} 31. Qe2 {[%emt 0:01:04]} Qxe2 {[%emt 0:03:29]} 32. Rxe2 {[%emt 0:00:05]} Rd1+ {[%emt 0:00:07]} 33. Kg2 {[%emt 0:00:04]} Na5 {[%emt 0:00:38]} 34. Rd2 {[%emt 0:02:16]} Rxd2 {[%emt 0:01:01]} 35. Bxd2 {[%emt 0:00:06]} Nc4 {[%emt 0:00:37]} 36. Bc1 {[%emt 0:00:04]} e4 {[%emt 0:03:55]} 37. f3 {[%emt 0:02:21]} Ne5 {[%emt 0:01:44]} 38. fxe4 {[%emt 0:05:32]} Nd3 {[%emt 0:00:05]} 39. Bf4 {[%emt 0:02:11]} Nxb2 {[%emt 0:00:19]} 40. Nf5 {[%emt 0:00:06]} Nc4 {[%emt 0:02:45]} 41. Kf3 {[%emt 0:01:40]} Bxa3 {[%emt 0:01:33]} 0-1

[Event "4NCL Hull GM 2021"]
[Site "Hull"]
[Date "2021.10.21"]
[Round "3.3"]
[White "Czopor, Maciej"]
[Black "Clarke, Brandon G I"]
[Result "1-0"]
[ECO "B51"]
[WhiteElo "2411"]
[BlackElo "2442"]
[Annotator "ChessBase"]
[PlyCount "101"]
[EventDate "2021.10.20"]
[EventType "tourn"]
[EventCountry "ENG"]
[SourceTitle "playchess.com"]
[Source "ChessBase"]
[SourceQuality "1"]
[TimeControl "5400+30"]

1. e4 {[%emt 0:00:03]} c5 {[%emt 0:02:03]} 2. Nf3 {[%emt 0:00:06]} d6 {[%emt 0:00:07]} 3. Bb5+ {[%emt 0:00:04]} Nc6 {[%emt 0:04:18]} 4. O-O {[%emt 0:00:08]} Bd7 {[%emt 0:00:05]} 5. Re1 {[%emt 0:00:04]} a6 {[%emt 0:00:06]} 6. Bf1 {[%emt 0:00:13]} Nf6 {[%emt 0:00:11]} 7. c3 {[%emt 0:00:12]} Bg4 {[%emt 0:00:22]} 8. h3 {[%emt 0:00:07]} Bxf3 {[%emt 0:00:06]} 9. Qxf3 {[%emt 0:00:04]} g6 {[%emt 0:00:28]} 10. d3 {[%emt 0:00:36]} Bg7 {[%emt 0:00:07]} 11. Nd2 {[%emt 0:01:30]} O-O {[%emt 0:00:09]} 12. Qd1 {[%emt 0:00:19]} Nd7 {[%emt 0:06:24]} 13. Nf3 {[%emt 0:00:14]} Nde5 {[%emt 0:00:04]} 14. Nh2 {[%emt 0:11:54]} b5 {[%emt 0:01:58]} 15. Be3 {[%emt 0:00:48]} Rb8 {[%emt 0:10:46]} 16. f4 {[%emt 0:29:44]} Nd7 {[%emt 0:00:01]} 17. d4 {[%emt 0:00:34]} cxd4 {[%emt 0:02:51]} 18. cxd4 {[%emt 0:00:06]} e5 {[%emt 0:00:15]} 19. Nf3 {[%emt 0:01:30]} Nf6 {[%emt 0:02:34]} 20. fxe5 {[%emt 0:06:41]} dxe5 {[%emt 0:00:32]} 21. d5 {[%emt 0:08:47]} Na5 {[%emt 0:03:52]} 22. Bf2 {[%emt 0:02:16]} Re8 {[%emt 0:03:43]} 23. Rc1 {[%emt 0:01:17]} Bf8 {[%emt 0:03:17]} 24. Qd2 {[%emt 0:01:22]} Nb7 {[%emt 0:09:25]} 25. Rc6 {[%emt 0:01:11]} Nd6 {[%emt 0:01:49]} 26. Bd3 {[%emt 0:00:23]} a5 {[%emt 0:00:30]} 27. Bh4 {[%emt 0:07:31]} Be7 {[%emt 0:03:04]} 28. Bg3 {[%emt 0:00:34]} Ndxe4 {[%emt 0:05:16]} 29. Bxe4 {[%emt 0:00:20]} Bb4 {[%emt 0:00:04]} 30. Qd3 {[%emt 0:09:26]} Bxe1 {[%emt 0:00:13]} 31. Bxe1 {[%emt 0:00:18]} Nxe4 {[%emt 0:00:20]} 32. Qxe4 {[%emt 0:00:03]} f5 {[%emt 0:02:39]} 33. Qh4 {[%emt 0:01:39]} Qxh4 {[%emt 0:00:03]} 34. Bxh4 {[%emt 0:00:04]} e4 {[%emt 0:05:22]} 35. Nd4 {[%emt 0:00:26]} e3 {[%emt 0:00:03]} 36. d6 {[%emt 0:04:30]} Re4 {[%emt 0:03:53]} 37. d7 {[%emt 0:04:50]} Rxd4 {[%emt 0:00:03]} 38. Rc8+ {[%emt 0:00:06]} Kf7 {[%emt 0:00:07]} 39. Rxb8 {[%emt 0:00:45]} Rxd7 {[%emt 0:00:04]} 40. Be1 {[%emt 0:01:33]} b4 {[%emt 0:00:25]} 41. Rb5 {[%emt 0:00:52]} Ke6 {[%emt 0:00:16]} 42. Rxa5 {[%emt 0:02:33]} Rd2 {[%emt 0:00:02]} 43. b3 {[%emt 0:00:10]} f4 {[%emt 0:00:15]} 44. Kf1 {[%emt 0:02:36]} Rb2 {[%emt 0:00:02]} 45. Bxb4 {[%emt 0:02:05]} h6 {[%emt 0:00:31]} 46. Be1 {[%emt 0:01:02]} g5 {[%emt 0:00:13]} 47. b4 {[%emt 0:00:09]} Rc2 {[%emt 0:00:27]} 48. a4 {[%emt 0:01:03]} Ra2 {[%emt 0:00:14]} 49. b5 {[%emt 0:00:28]} Kd5 {[%emt 0:00:30]} 50. b6+ {[%emt 0:00:11]} Kc6 {[%emt 0:00:10]} 51. Rb5 {[%emt 0:00:15]} 1-0